[Event "Titled Tuesday Blitz September 27 Early 2022"]
[White "Agasarov, Benik"]
[Black "Milosevic, Milos"]
[WhiteFideId "13314823"]
[BlackFideId "964875"]
[WhiteElo "2152"]
[BlackElo "2321"]
[Result "1-0"]
[Round "02"]
[TimeControl "180+1"]
[Date "2022.09.27"]
[WhiteClock "0:00:07"]
[BlackClock "0:00:03"]

1. d4 {[%clk 0:03:00]}  Nf6 {[%clk 0:02:59]} 2. Nf3 {[%clk 0:02:59]}  d5 {[%clk 0:02:59]} 3. c4 {[%clk 0:02:59]}  c6 {[%clk 0:02:59]} 4. Nc3 {[%clk 0:02:59]}  Bf5 {[%clk 0:02:56]} 5. cxd5 {[%clk 0:02:42]}  cxd5 {[%clk 0:02:57]} 6. Qb3 {[%clk 0:02:42]}  Qb6 {[%clk 0:02:56]} 7. Nxd5 {[%clk 0:02:41]}  Nxd5 {[%clk 0:02:50]} 8. Qxd5 {[%clk 0:02:41]}  e6 {[%clk 0:02:51]} 9. Qc4 {[%clk 0:02:32]}  Nc6 {[%clk 0:02:48]} 10. e3 {[%clk 0:02:26]}  Bb4+ {[%clk 0:02:43]} 11. Nd2 {[%clk 0:02:14]}  O-O {[%clk 0:02:39]} 12. Bd3 {[%clk 0:02:15]}  Rac8 {[%clk 0:02:29]} 13. Bxf5 {[%clk 0:02:13]}  exf5 {[%clk 0:02:29]} 14. Qd3 {[%clk 0:02:12]}  Ne5 {[%clk 0:02:21]} 15. Qxf5 {[%clk 0:01:47]}  Qb5 {[%clk 0:02:21]} 16. dxe5 {[%clk 0:00:58]}  Rfd8 {[%clk 0:02:19]} 17. a4 {[%clk 0:00:20]}  Qa6 {[%clk 0:01:54]} 18. Qb1 {[%clk 0:00:07]}  Rxc1+ {[%clk 0:01:49]} 19. Qxc1 {[%clk 0:00:08]}  Bxd2+ {[%clk 0:01:49]} 20. Qxd2 {[%clk 0:00:09]}  Rxd2 {[%clk 0:01:49]} 21. Kxd2 {[%clk 0:00:10]}  Qa5+ {[%clk 0:01:49]} 22. Ke2 {[%clk 0:00:10]}  Qxe5 {[%clk 0:01:49]} 23. Rad1 {[%clk 0:00:09]}  Qxb2+ {[%clk 0:01:41]} 24. Rd2 {[%clk 0:00:10]}  Qf6 {[%clk 0:01:41]} 25. Rhd1 {[%clk 0:00:09]}  Qa6+ {[%clk 0:01:36]} 26. Kf3 {[%clk 0:00:08]}  g6 {[%clk 0:01:36]} 27. Rd8+ {[%clk 0:00:09]}  Kg7 {[%clk 0:01:37]} 28. R1d4 {[%clk 0:00:09]}  Qc6+ {[%clk 0:01:35]} 29. Kg3 {[%clk 0:00:09]}  a6 {[%clk 0:01:33]} 30. R8d6 {[%clk 0:00:09]}  Qc7 {[%clk 0:01:33]} 31. f4 {[%clk 0:00:09]}  b5 {[%clk 0:01:30]} 32. axb5 {[%clk 0:00:10]}  axb5 {[%clk 0:01:31]} 33. Rd7 {[%clk 0:00:10]}  Qc3 {[%clk 0:01:29]} 34. Re7 {[%clk 0:00:09]}  b4 {[%clk 0:01:23]} 35. Rdd7 {[%clk 0:00:09]}  Qc4 {[%clk 0:01:23]} 36. Rb7 {[%clk 0:00:07]}  b3 {[%clk 0:01:22]} 37. Kf3 {[%clk 0:00:07]}  Qf1+ {[%clk 0:01:14]} 38. Kg3 {[%clk 0:00:08]}  Qe1+ {[%clk 0:01:14]} 39. Kf3 {[%clk 0:00:08]}  Qd1+ {[%clk 0:01:14]} 40. Kg3 {[%clk 0:00:08]}  Qd3 {[%clk 0:01:08]} 41. Kf3 {[%clk 0:00:08]}  h5 {[%clk 0:01:06]} 42. Rxf7+ {[%clk 0:00:07]}  Kg8 {[%clk 0:01:03]} 43. Rg7+ {[%clk 0:00:07]}  Kf8 {[%clk 0:01:03]} 44. Rgf7+ {[%clk 0:00:08]}  Ke8 {[%clk 0:01:02]} 45. Rg7 {[%clk 0:00:08]}  Qd5+ {[%clk 0:00:59]} 46. Kg3 {[%clk 0:00:08]}  h4+ {[%clk 0:00:49]} 47. Kxh4 {[%clk 0:00:07]}  Kf8 {[%clk 0:00:26]} 48. Rgd7 {[%clk 0:00:07]}  Qh5+ {[%clk 0:00:17]} 49. Kg3 {[%clk 0:00:08]}  Ke8 {[%clk 0:00:18]} 50. Rh7 {[%clk 0:00:07]}  Qd5 {[%clk 0:00:03]} 51. Rh8+ {[%clk 0:00:07]} 1-0


[Site "https://www.chess.com"]

[Event "Titled Tuesday Blitz September 27 Early 2022"]
[White "Aggelis, Nikolaos"]
[Black "Gan-Od, Sereenen"]
[WhiteFideId "4213220"]
[BlackFideId "4901304"]
[WhiteElo "2154"]
[BlackElo "2316"]
[Result "0-1"]
[Round "02"]
[TimeControl "180+1"]
[Date "2022.09.27"]
[WhiteClock "0:00:40"]
[BlackClock "0:00:38"]

1. Nf3 {[%clk 0:03:00]}  Nf6 {[%clk 0:02:59]} 2. d4 {[%clk 0:03:01]}  e6 {[%clk 0:02:59]} 3. g3 {[%clk 0:03:00]}  d5 {[%clk 0:02:57]} 4. Bg2 {[%clk 0:03:01]}  Be7 {[%clk 0:02:58]} 5. O-O {[%clk 0:03:02]}  O-O {[%clk 0:02:58]} 6. c4 {[%clk 0:03:03]}  c6 {[%clk 0:02:59]} 7. Nbd2 {[%clk 0:03:03]}  b6 {[%clk 0:02:59]} 8. b3 {[%clk 0:03:03]}  Nbd7 {[%clk 0:02:59]} 9. Bb2 {[%clk 0:03:04]}  Ba6 {[%clk 0:02:59]} 10. Ne5 {[%clk 0:03:03]}  Rc8 {[%clk 0:02:59]} 11. Nxd7 {[%clk 0:03:01]}  Qxd7 {[%clk 0:02:57]} 12. Rc1 {[%clk 0:02:59]}  Rfd8 {[%clk 0:02:54]} 13. Re1 {[%clk 0:02:55]}  c5 {[%clk 0:02:52]} 14. dxc5 {[%clk 0:02:55]}  dxc4 {[%clk 0:02:50]} 15. Nxc4 {[%clk 0:02:53]}  Bxc5 {[%clk 0:02:42]} 16. Qxd7 {[%clk 0:02:51]}  Rxd7 {[%clk 0:02:43]} 17. Ne5 {[%clk 0:02:41]}  Rd2 {[%clk 0:02:42]} 18. Bc3 {[%clk 0:02:32]}  Rxe2 {[%clk 0:02:38]} 19. Rxe2 {[%clk 0:02:26]}  Bxe2 {[%clk 0:02:38]} 20. Nc6 {[%clk 0:02:27]}  Kf8 {[%clk 0:02:21]} 21. Nxa7 {[%clk 0:02:20]}  Rd8 {[%clk 0:02:21]} 22. Nc6 {[%clk 0:02:11]}  Rd7 {[%clk 0:02:16]} 23. Ne5 {[%clk 0:02:06]}  Rd8 {[%clk 0:02:12]} 24. Nc6 {[%clk 0:02:06]}  Rd7 {[%clk 0:02:08]} 25. Ne5 {[%clk 0:02:05]}  Ra7 {[%clk 0:02:02]} 26. a4 {[%clk 0:02:05]}  h5 {[%clk 0:01:44]} 27. Nc6 {[%clk 0:02:05]}  Rd7 {[%clk 0:01:44]} 28. Ne5 {[%clk 0:02:05]}  Rd8 {[%clk 0:01:39]} 29. Nc6 {[%clk 0:02:05]}  Re8 {[%clk 0:01:27]} 30. b4 {[%clk 0:02:02]}  Be7 {[%clk 0:01:20]} 31. Bd4 {[%clk 0:02:01]}  Rc8 {[%clk 0:00:58]} 32. Bxb6 {[%clk 0:02:00]}  Bxb4 {[%clk 0:00:56]} 33. Rc2 {[%clk 0:01:43]}  Bd3 {[%clk 0:00:55]} 34. Nxb4 {[%clk 0:01:10]}  Bxc2 {[%clk 0:00:52]} 35. a5 {[%clk 0:01:10]}  Be4 {[%clk 0:00:46]} 36. Bxe4 {[%clk 0:00:52]}  Nxe4 {[%clk 0:00:47]} 37. a6 {[%clk 0:00:53]}  Nd6 {[%clk 0:00:42]} 38. a7 {[%clk 0:00:52]}  Nb5 {[%clk 0:00:41]} 39. Na6 {[%clk 0:00:44]}  Ra8 {[%clk 0:00:40]} 40. Nc7 {[%clk 0:00:43]}  Nxc7 {[%clk 0:00:39]} 41. Bxc7 {[%clk 0:00:41]}  Rxa7 {[%clk 0:00:39]} 42. Bd6+ {[%clk 0:00:41]}  Ke8 {[%clk 0:00:39]} 43. h4 {[%clk 0:00:42]}  f6 {[%clk 0:00:39]} 44. Kg2 {[%clk 0:00:42]}  Rd7 {[%clk 0:00:38]} 45. Bb4 {[%clk 0:00:41]}  Kf7 {[%clk 0:00:39]} 46. Kf3 {[%clk 0:00:41]}  e5 {[%clk 0:00:39]} 47. Bd2 {[%clk 0:00:40]}  Rxd2 {[%clk 0:00:38]} 0-1


[Site "https://www.chess.com"]

[Event "Titled Tuesday Blitz September 27 Early 2022"]
[White "Ahmadzada, Ahmad"]
[Black "Aldokhin, Ivan"]
[WhiteFideId "13413007"]
[BlackFideId "24115720"]
[WhiteElo "2185"]
[BlackElo "2243"]
[Result "1-0"]
[Round "02"]
[TimeControl "180+1"]
[Date "2022.09.27"]
[WhiteClock "0:00:49"]
[BlackClock "0:00:09"]

1. Nf3 {[%clk 0:03:00]}  Nf6 {[%clk 0:02:59]} 2. g3 {[%clk 0:03:00]}  g6 {[%clk 0:03:00]} 3. Bg2 {[%clk 0:02:59]}  Bg7 {[%clk 0:03:01]} 4. O-O {[%clk 0:03:00]}  O-O {[%clk 0:03:01]} 5. Re1 {[%clk 0:02:59]}  d5 {[%clk 0:02:59]} 6. d3 {[%clk 0:02:58]}  Nc6 {[%clk 0:02:59]} 7. Nbd2 {[%clk 0:02:57]}  Nd7 {[%clk 0:02:57]} 8. e4 {[%clk 0:02:57]}  e6 {[%clk 0:02:45]} 9. c3 {[%clk 0:02:54]}  Nc5 {[%clk 0:02:40]} 10. d4 {[%clk 0:02:45]}  Nxe4 {[%clk 0:02:34]} 11. Nxe4 {[%clk 0:02:42]}  dxe4 {[%clk 0:02:35]} 12. Rxe4 {[%clk 0:02:43]}  e5 {[%clk 0:02:32]} 13. Bg5 {[%clk 0:02:41]}  f6 {[%clk 0:02:26]} 14. Qb3+ {[%clk 0:02:32]}  Kh8 {[%clk 0:02:24]} 15. Bd2 {[%clk 0:02:07]}  Bf5 {[%clk 0:01:52]} 16. Ree1 {[%clk 0:02:01]}  exd4 {[%clk 0:01:48]} 17. Nxd4 {[%clk 0:01:53]}  Nxd4 {[%clk 0:01:43]} 18. cxd4 {[%clk 0:01:53]}  Qxd4 {[%clk 0:01:43]} 19. Be3 {[%clk 0:01:46]}  Qd3 {[%clk 0:01:16]} 20. Qxb7 {[%clk 0:01:32]}  Rab8 {[%clk 0:01:02]} 21. Qxc7 {[%clk 0:01:31]}  Rxb2 {[%clk 0:00:59]} 22. Qxa7 {[%clk 0:01:31]}  h5 {[%clk 0:00:34]} 23. a4 {[%clk 0:01:20]}  h4 {[%clk 0:00:32]} 24. Qd4 {[%clk 0:01:13]}  Qc2 {[%clk 0:00:19]} 25. Qxh4+ {[%clk 0:01:11]}  Kg8 {[%clk 0:00:18]} 26. Bd5+ {[%clk 0:01:11]}  Rf7 {[%clk 0:00:17]} 27. Bd4 {[%clk 0:01:08]}  Rb8 {[%clk 0:00:11]} 28. Rac1 {[%clk 0:00:53]}  Qd2 {[%clk 0:00:09]} 29. Bxf7+ {[%clk 0:00:51]}  Kxf7 {[%clk 0:00:08]} 30. Rc7+ {[%clk 0:00:51]}  Kg8 {[%clk 0:00:08]} 31. Rxg7+ {[%clk 0:00:50]}  Kxg7 {[%clk 0:00:09]} 32. Qxf6+ {[%clk 0:00:49]}  Kh6 {[%clk 0:00:09]} 33. Qh4# {[%clk 0:00:49]} 1-0


[Site "https://www.chess.com"]

[Event "Titled Tuesday Blitz September 27 Early 2022"]
[White "Aizpurua, Patrick Emilio"]
[Black "Molina, Roberto Junio Brito"]
[WhiteFideId "6600522"]
[BlackFideId "2109450"]
[WhiteElo "2378"]
[BlackElo "2403"]
[Result "0-1"]
[Round "02"]
[TimeControl "180+1"]
[Date "2022.09.27"]
[WhiteClock "0:00:31"]
[BlackClock "0:00:49"]

1. d4 {[%clk 0:03:00]}  d5 {[%clk 0:02:59]} 2. c4 {[%clk 0:03:00]}  c6 {[%clk 0:02:56]} 3. Nf3 {[%clk 0:03:01]}  Nf6 {[%clk 0:02:56]} 4. Nc3 {[%clk 0:03:01]}  dxc4 {[%clk 0:02:56]} 5. a4 {[%clk 0:03:01]}  Bf5 {[%clk 0:02:56]} 6. e3 {[%clk 0:03:01]}  e6 {[%clk 0:02:56]} 7. Bxc4 {[%clk 0:03:01]}  Bb4 {[%clk 0:02:56]} 8. O-O {[%clk 0:03:00]}  O-O {[%clk 0:02:56]} 9. Qe2 {[%clk 0:03:00]}  Nbd7 {[%clk 0:02:55]} 10. e4 {[%clk 0:03:00]}  Bg6 {[%clk 0:02:55]} 11. Bd3 {[%clk 0:02:58]}  Bh5 {[%clk 0:02:53]} 12. e5 {[%clk 0:02:58]}  Nd5 {[%clk 0:02:52]} 13. Nxd5 {[%clk 0:02:58]}  cxd5 {[%clk 0:02:52]} 14. Qe3 {[%clk 0:02:58]}  Re8 {[%clk 0:02:45]} 15. Bd2 {[%clk 0:02:52]}  Bxd2 {[%clk 0:02:39]} 16. Nxd2 {[%clk 0:02:53]}  Rc8 {[%clk 0:02:36]} 17. a5 {[%clk 0:02:47]}  a6 {[%clk 0:02:32]} 18. Nb3 {[%clk 0:02:36]}  Qe7 {[%clk 0:02:29]} 19. Qd2 {[%clk 0:02:33]}  Rc7 {[%clk 0:02:27]} 20. Rfc1 {[%clk 0:02:29]}  Rec8 {[%clk 0:02:27]} 21. h3 {[%clk 0:02:18]}  Bg6 {[%clk 0:02:23]} 22. Bxg6 {[%clk 0:02:16]}  hxg6 {[%clk 0:02:24]} 23. Rxc7 {[%clk 0:02:10]}  Rxc7 {[%clk 0:02:25]} 24. Rc1 {[%clk 0:02:10]}  Nb8 {[%clk 0:02:24]} 25. Nc5 {[%clk 0:01:56]}  Nc6 {[%clk 0:02:22]} 26. b4 {[%clk 0:01:55]}  Na7 {[%clk 0:02:16]} 27. g3 {[%clk 0:01:32]}  Nb5 {[%clk 0:02:13]} 28. h4 {[%clk 0:01:32]}  Rc6 {[%clk 0:02:04]} 29. Kg2 {[%clk 0:01:29]}  f6 {[%clk 0:01:51]} 30. Re1 {[%clk 0:01:03]}  f5 {[%clk 0:01:34]} 31. Rh1 {[%clk 0:01:03]}  Kh7 {[%clk 0:01:19]} 32. h5 {[%clk 0:01:03]}  g5 {[%clk 0:01:19]} 33. Qd3 {[%clk 0:00:59]}  Kh6 {[%clk 0:01:15]} 34. g4 {[%clk 0:00:58]}  Qf7 {[%clk 0:01:11]} 35. gxf5 {[%clk 0:00:58]}  Qxf5 {[%clk 0:01:08]} 36. Qxf5 {[%clk 0:00:51]}  exf5 {[%clk 0:01:09]} 37. Rd1 {[%clk 0:00:46]}  b6 {[%clk 0:01:03]} 38. axb6 {[%clk 0:00:43]}  Rxb6 {[%clk 0:01:04]} 39. e6 {[%clk 0:00:43]}  Kxh5 {[%clk 0:01:00]} 40. Rh1+ {[%clk 0:00:34]}  Kg6 {[%clk 0:01:00]} 41. Rh8 {[%clk 0:00:35]}  Kf6 {[%clk 0:00:50]} 42. Rf8+ {[%clk 0:00:34]}  Ke7 {[%clk 0:00:50]} 43. Rf7+ {[%clk 0:00:34]}  Ke8 {[%clk 0:00:50]} 44. Rf6 {[%clk 0:00:31]}  gxf6 {[%clk 0:00:49]} 0-1


[Site "https://www.chess.com"]

[Event "Titled Tuesday Blitz September 27 Early 2022"]
[White "Al-Tarboush, Ward"]
[Black "Eisa Mohmood, Alkhoori"]
[WhiteFideId "7601450"]
[BlackFideId "9316116"]
[WhiteElo "2234"]
[BlackElo "1245"]
[Result "1-0"]
[Round "02"]
[TimeControl "180+1"]
[Date "2022.09.27"]
[WhiteClock "0:00:57"]
[BlackClock "0:00:01"]

1. e4 {[%clk 0:03:00]}  c5 {[%clk 0:02:59]} 2. Nf3 {[%clk 0:02:58]}  d6 {[%clk 0:02:57]} 3. d4 {[%clk 0:02:58]}  cxd4 {[%clk 0:02:58]} 4. Nxd4 {[%clk 0:02:59]}  Nf6 {[%clk 0:02:59]} 5. Nc3 {[%clk 0:02:59]}  g6 {[%clk 0:02:59]} 6. Be2 {[%clk 0:02:59]}  Bg7 {[%clk 0:03:00]} 7. O-O {[%clk 0:02:59]}  O-O {[%clk 0:03:00]} 8. Be3 {[%clk 0:03:00]}  Nc6 {[%clk 0:03:00]} 9. h3 {[%clk 0:02:58]}  d5 {[%clk 0:02:56]} 10. exd5 {[%clk 0:02:56]}  Nxd5 {[%clk 0:02:57]} 11. Nxd5 {[%clk 0:02:55]}  Qxd5 {[%clk 0:02:58]} 12. Bf3 {[%clk 0:02:55]}  Qd6 {[%clk 0:02:46]} 13. Nxc6 {[%clk 0:02:52]}  bxc6 {[%clk 0:02:46]} 14. Qxd6 {[%clk 0:02:52]}  exd6 {[%clk 0:02:46]} 15. Bxc6 {[%clk 0:02:50]}  Rb8 {[%clk 0:02:44]} 16. Rab1 {[%clk 0:02:44]}  Be6 {[%clk 0:02:36]} 17. b3 {[%clk 0:02:41]}  a5 {[%clk 0:02:28]} 18. c4 {[%clk 0:02:38]}  Rfc8 {[%clk 0:02:14]} 19. Bb5 {[%clk 0:02:36]}  d5 {[%clk 0:02:12]} 20. Rfc1 {[%clk 0:02:29]}  d4 {[%clk 0:02:06]} 21. Bd2 {[%clk 0:02:26]}  Ra8 {[%clk 0:02:05]} 22. c5 {[%clk 0:02:25]}  Bf5 {[%clk 0:02:01]} 23. Rb2 {[%clk 0:02:22]}  d3 {[%clk 0:02:01]} 24. Bc3 {[%clk 0:02:08]}  Rxc5 {[%clk 0:02:01]} 25. Bc4 {[%clk 0:02:08]}  Bh6 {[%clk 0:01:53]} 26. Bd2 {[%clk 0:02:06]}  Bg7 {[%clk 0:01:53]} 27. Bc3 {[%clk 0:02:02]}  Bh6 {[%clk 0:01:38]} 28. Rd1 {[%clk 0:02:01]}  a4 {[%clk 0:01:33]} 29. Bd4 {[%clk 0:01:58]}  a3 {[%clk 0:01:24]} 30. Rbb1 {[%clk 0:01:51]}  Rc7 {[%clk 0:01:09]} 31. Bxd3 {[%clk 0:01:50]}  Bxd3 {[%clk 0:01:10]} 32. Rxd3 {[%clk 0:01:51]}  Rc2 {[%clk 0:01:11]} 33. Ra1 {[%clk 0:01:41]}  Rd8 {[%clk 0:00:59]} 34. Rc3 {[%clk 0:01:27]}  Rd2 {[%clk 0:00:19]} 35. Bf6 {[%clk 0:01:24]}  Rd1+ {[%clk 0:00:19]} 36. Rxd1 {[%clk 0:01:24]}  Rxd1+ {[%clk 0:00:20]} 37. Kh2 {[%clk 0:01:24]}  Rc1 {[%clk 0:00:07]} 38. Rxc1 {[%clk 0:01:22]}  Bxc1 {[%clk 0:00:08]} 39. Kg3 {[%clk 0:01:18]}  Bb2 {[%clk 0:00:09]} 40. Be7 {[%clk 0:01:17]}  f5 {[%clk 0:00:08]} 41. Kf3 {[%clk 0:01:15]}  Kf7 {[%clk 0:00:09]} 42. Bb4 {[%clk 0:01:15]}  Ke6 {[%clk 0:00:10]} 43. Ke3 {[%clk 0:01:15]}  Kd5 {[%clk 0:00:10]} 44. Kd3 {[%clk 0:01:15]}  g5 {[%clk 0:00:07]} 45. Bc3 {[%clk 0:01:12]}  Bc1 {[%clk 0:00:05]} 46. Bd2 {[%clk 0:01:07]}  Bxd2 {[%clk 0:00:01]} 47. Kxd2 {[%clk 0:01:08]}  Kd4 {[%clk 0:00:01]} 48. Kc2 {[%clk 0:01:06]}  f4 {[%clk 0:00:02]} 49. Kd2 {[%clk 0:01:05]}  h5 {[%clk 0:00:01]} 50. Kc2 {[%clk 0:01:00]}  Ke4 {[%clk 0:00:01]} 51. b4 {[%clk 0:00:57]}  Kd4 {[%clk 0:00:01]} 52. Kb3 {[%clk 0:00:57]} 1-0


[Site "https://www.chess.com"]

[Event "Titled Tuesday Blitz September 27 Early 2022"]
[White "Alexikov, Alexander"]
[Black "Maltsevskaya, Aleksandra"]
[WhiteFideId "14103958"]
[BlackFideId "24174041"]
[WhiteElo "2222"]
[BlackElo "2243"]
[Result "0-1"]
[Round "02"]
[TimeControl "180+1"]
[Date "2022.09.27"]
[WhiteClock "0:00:03"]
[BlackClock "0:00:22"]

1. e4 {[%clk 0:03:00]}  c5 {[%clk 0:02:45]} 2. Nf3 {[%clk 0:03:00]}  e6 {[%clk 0:02:45]} 3. Nc3 {[%clk 0:02:59]}  Nc6 {[%clk 0:02:46]} 4. d4 {[%clk 0:02:57]}  cxd4 {[%clk 0:02:47]} 5. Nxd4 {[%clk 0:02:56]}  Nf6 {[%clk 0:02:47]} 6. Nxc6 {[%clk 0:02:55]}  bxc6 {[%clk 0:02:47]} 7. Bd3 {[%clk 0:02:54]}  d5 {[%clk 0:02:46]} 8. O-O {[%clk 0:02:52]}  Be7 {[%clk 0:02:46]} 9. Qe2 {[%clk 0:02:47]}  O-O {[%clk 0:02:47]} 10. b3 {[%clk 0:02:46]}  a5 {[%clk 0:02:46]} 11. Bb2 {[%clk 0:02:43]}  Qb6 {[%clk 0:02:43]} 12. Na4 {[%clk 0:02:41]}  Qa7 {[%clk 0:02:42]} 13. c4 {[%clk 0:02:38]}  Ba6 {[%clk 0:02:39]} 14. Rac1 {[%clk 0:02:18]}  Rfd8 {[%clk 0:02:34]} 15. Rfd1 {[%clk 0:02:10]}  h6 {[%clk 0:02:27]} 16. h3 {[%clk 0:02:07]}  Rac8 {[%clk 0:02:17]} 17. e5 {[%clk 0:01:41]}  Nd7 {[%clk 0:02:16]} 18. Bd4 {[%clk 0:01:39]}  Qb8 {[%clk 0:02:12]} 19. f4 {[%clk 0:01:36]}  Nf8 {[%clk 0:01:57]} 20. Qe3 {[%clk 0:01:34]}  Ba3 {[%clk 0:01:45]} 21. Rb1 {[%clk 0:01:05]}  Nd7 {[%clk 0:01:34]} 22. f5 {[%clk 0:00:44]}  c5 {[%clk 0:01:31]} 23. Ba1 {[%clk 0:00:39]}  d4 {[%clk 0:01:31]} 24. Qf2 {[%clk 0:00:25]}  Nxe5 {[%clk 0:01:27]} 25. fxe6 {[%clk 0:00:21]}  fxe6 {[%clk 0:01:27]} 26. Be4 {[%clk 0:00:21]}  Rf8 {[%clk 0:01:26]} 27. Qe2 {[%clk 0:00:17]}  Rf4 {[%clk 0:01:21]} 28. Bb2 {[%clk 0:00:14]}  Bxb2 {[%clk 0:01:20]} 29. Nxb2 {[%clk 0:00:13]}  Rcf8 {[%clk 0:01:16]} 30. Rf1 {[%clk 0:00:10]}  Qd6 {[%clk 0:01:14]} 31. Nd3 {[%clk 0:00:08]}  Nxd3 {[%clk 0:01:12]} 32. Bxd3 {[%clk 0:00:07]}  e5 {[%clk 0:01:11]} 33. Rxf4 {[%clk 0:00:06]}  Rxf4 {[%clk 0:01:12]} 34. Re1 {[%clk 0:00:05]}  Bb7 {[%clk 0:00:21]} 35. Qxe5 {[%clk 0:00:03]}  Qf8 {[%clk 0:00:22]} 0-1


[Site "https://www.chess.com"]

[Event "Titled Tuesday Blitz September 27 Early 2022"]
[White "Andreikin, Dmitry"]
[Black "Mitrovic, Darko R"]
[WhiteFideId "4158814"]
[BlackFideId "927023"]
[WhiteElo "2736"]
[BlackElo "2150"]
[Result "1-0"]
[Round "02"]
[TimeControl "180+1"]
[Date "2022.09.27"]
[WhiteClock "0:00:52"]
[BlackClock "0:00:01"]

1. d4 {[%clk 0:03:00]}  Nf6 {[%clk 0:02:36]} 2. Bg5 {[%clk 0:02:57]}  e6 {[%clk 0:02:34]} 3. Nd2 {[%clk 0:02:56]}  d5 {[%clk 0:02:27]} 4. e3 {[%clk 0:02:56]}  b6 {[%clk 0:02:25]} 5. c3 {[%clk 0:02:54]}  Be7 {[%clk 0:02:24]} 6. f4 {[%clk 0:02:55]}  O-O {[%clk 0:02:23]} 7. Ngf3 {[%clk 0:02:55]}  c5 {[%clk 0:02:17]} 8. Ne5 {[%clk 0:02:53]}  Nfd7 {[%clk 0:02:06]} 9. Bxe7 {[%clk 0:02:50]}  Qxe7 {[%clk 0:02:06]} 10. Bd3 {[%clk 0:02:50]}  Ba6 {[%clk 0:01:47]} 11. Bxa6 {[%clk 0:02:49]}  Nxa6 {[%clk 0:01:46]} 12. O-O {[%clk 0:02:49]}  f6 {[%clk 0:01:39]} 13. Nxd7 {[%clk 0:02:48]}  Qxd7 {[%clk 0:01:38]} 14. Rf3 {[%clk 0:02:49]}  b5 {[%clk 0:01:23]} 15. Rh3 {[%clk 0:02:48]}  b4 {[%clk 0:01:17]} 16. Nf3 {[%clk 0:02:48]}  bxc3 {[%clk 0:01:14]} 17. Qd3 {[%clk 0:02:46]}  g6 {[%clk 0:01:10]} 18. Qxa6 {[%clk 0:02:44]}  cxb2 {[%clk 0:01:10]} 19. Rb1 {[%clk 0:02:44]}  Rab8 {[%clk 0:00:52]} 20. dxc5 {[%clk 0:02:44]}  Rfc8 {[%clk 0:00:52]} 21. Qa3 {[%clk 0:02:38]}  Qb5 {[%clk 0:00:45]} 22. Qxa7 {[%clk 0:01:42]}  Rb7 {[%clk 0:00:39]} 23. Nd4 {[%clk 0:01:43]}  Rxa7 {[%clk 0:00:30]} 24. Nxb5 {[%clk 0:01:43]}  Rxa2 {[%clk 0:00:30]} 25. Nc3 {[%clk 0:01:22]}  Ra1 {[%clk 0:00:27]} 26. Kf2 {[%clk 0:01:19]}  Rxb1 {[%clk 0:00:22]} 27. Nxb1 {[%clk 0:01:20]}  Rxc5 {[%clk 0:00:23]} 28. e4 {[%clk 0:01:13]}  Rc1 {[%clk 0:00:21]} 29. Na3 {[%clk 0:01:13]}  Rc2+ {[%clk 0:00:11]} 30. Ke1 {[%clk 0:01:02]}  Rc1+ {[%clk 0:00:08]} 31. Kf2 {[%clk 0:00:59]}  b1=Q {[%clk 0:00:08]} 32. Nxb1 {[%clk 0:00:59]}  Rxb1 {[%clk 0:00:08]} 33. exd5 {[%clk 0:00:59]}  exd5 {[%clk 0:00:08]} 34. Rc3 {[%clk 0:01:00]}  d4 {[%clk 0:00:06]} 35. Rc7 {[%clk 0:00:59]}  d3 {[%clk 0:00:03]} 36. Rd7 {[%clk 0:00:59]}  Rb2+ {[%clk 0:00:03]} 37. Kf3 {[%clk 0:00:59]}  d2 {[%clk 0:00:03]} 38. g4 {[%clk 0:00:59]}  f5 {[%clk 0:00:03]} 39. g5 {[%clk 0:00:57]}  Ra2 {[%clk 0:00:02]} 40. h4 {[%clk 0:00:58]}  Rb2 {[%clk 0:00:02]} 41. Ke3 {[%clk 0:00:58]}  Ra2 {[%clk 0:00:01]} 42. Ke2 {[%clk 0:00:54]}  Rb2 {[%clk 0:00:01]} 43. Rd5 {[%clk 0:00:51]}  Ra2 {[%clk 0:00:01]} 44. h5 {[%clk 0:00:52]} 1-0


[Site "https://www.chess.com"]